bitfinex/quotes_ETHUSD_20251118
["timestamp","ask_amount","ask_price","bid_price","bid_amount"]
[1763460311038,1.7037,3073.8,3072.8,0.405504]
[1763460312257,0.2487,3073.7,3072.4,0.453]
[1763460313038,1.455,3073.8,3072.4,0.453]
[1763460313039,0.2507,3073.9,3072.5,0.405504]
[1763460313358,1.7037,3073.8,3072.5,0.405504]
[1763460313546,1.7037,3073.8,3072.6,0.405504]
[1763460313932,0.2487,3073.7,3072.6,0.405504]
[1763460314566,0.002,3073.9,3072.7,0.453]
[1763460314750,0.002,3073.9,3072.8,0.405504]
[1763460314751,1.455,3073.6,3072.8,0.405504]
[1763460315139,1.455,3073.6,3073.5,0.4647]
[1763460315344,1.455,3073.6,3073.5,0.870204]
[1763460316045,1.174,3073.6,3073.5,0.405504]
[1763460316249,1.174,3073.6,3073.5,0.870204]
[1763460316628,1.174,3073.6,3073.5,1.323204]
[1763460317258,1.455,3073.6,3073.5,1.323204]
[1763460319136,1.455,3073.6,3073.5,0.22301966]
[1763460319452,1.455,3073.6,3073.5,0.870204]
[1763460319968,1.455,3073.6,3072.6,1.37169264]
[1763460319969,1.7037,3073.6,3072.8,0.4683]
[1763460320352,0.2487,3073.5,3072.5,0.4683]
[1763460320659,0.2487,3073.5,3072.3,0.001]
[1763460322655,0.1713,3072.4,3072.3,0.001]
[1763460322851,0.4523,3072.4,3072.3,0.001]
[1763460323239,0.9497,3072.4,3072.3,0.001]
[1763460328376,0.701,3072.4,3072.3,0.001]
[1763460329375,0.9497,3072.4,3072.3,0.001]
[1763460330142,0.42,3072.4,3072.3,0.001]
[1763460330342,2.1247,3072.4,3072.3,0.001]
[1763460330982,2.1247,3072.4,3071.6,0.001]
[1763460331197,2.1247,3072.4,3070.8,0.001]
[1763460331198,8.44507856,3071.7,3070.8,0.001]
[1763460331508,0.1295,3070.9,3070.8,0.001]
[1763460331780,0.4105,3070.9,3070.8,0.001]
[1763460331992,0.6582,3070.9,3070.8,0.001]
[1763460332142,1.456,3070.9,3070.8,0.001]
[1763460332344,1.175,3070.9,3070.8,1.372604]
[1763460332642,0.281,3070.9,3070.8,0.4988]
[1763460332862,0.281,3070.9,3070.8,0.9671]
[1763460333579,0.281,3070.9,3070.8,1.372604]
[1763460334665,0.281,3070.9,3070.8,0.9671]
[1763460334868,0.281,3070.9,3070.8,0.001]
[1763460335288,0.281,3070.9,3070.8,0.9671]
[1763460335569,0.281,3070.9,3070.8,0.4988]
[1763460335882,0.281,3070.9,3070.8,0.001]
[1763460336268,0.6051,3070.9,3070.8,0.001]
[1763460336812,0.8528,3070.9,3070.8,0.001]
[1763460337155,0.6051,3070.9,3070.8,0.001]
[1763460338049,1.7801,3070.9,3070.8,0.001]
[1763460338577,1.456,3070.9,3070.8,0.001]
[1763460339570,1.175,3070.9,3070.8,0.001]
[1763460339770,1.4975,3070.9,3070.8,0.001]
[1763460340762,1.7785,3070.9,3070.8,0.001]
[1763460341859,2.0254,3070.9,3070.8,0.001]
[1763460342265,1.7785,3070.9,3070.8,0.001]
[1763460342460,1.175,3070.9,3070.8,0.001]
[1763460342667,1.456,3070.9,3070.8,0.001]
[1763460342862,1.456,3070.9,3070.8,0.9466]
[1763460343063,1.456,3070.9,3070.8,0.4644]
[1763460343571,1.456,3070.9,3070.8,0.001]
[1763460343973,1.7785,3070.9,3070.8,0.001]
[1763460344478,1.5316,3070.9,3070.8,0.001]
[1763460345182,1.456,3070.9,3070.8,0.001]
[1763460346689,0.2469,3072.2,3070.8,0.9466]
[1763460346984,1.175,3070.9,3070.8,0.9466]
[1763460347172,1.456,3070.9,3070.8,0.9466]
[1763460347885,1.456,3070.9,3070.8,0.4644]
[1763460348183,1.456,3070.9,3070.8,0.001]
[1763460349286,1.456,3070.9,3070.8,0.4644]
[1763460349591,1.456,3070.9,3070.8,0.9466]
[1763460350477,1.456,3070.9,3070.8,1.352104]
[1763460354981,1.456,3070.9,3070.8,0.4644]
[1763460355169,1.456,3070.9,3070.8,0.001]
[1763460355692,1.456,3070.9,3070.8,0.4644]
[1763460356094,1.456,3070.9,3070.8,0.9466]
[1763460356295,1.456,3070.9,3070.8,1.352104]
[1763460356598,0.002,3071.6,3070.9,0.405504]
[1763460356896,1.455,3071.5,3070.9,0.887704]
[1763460357064,0.002,3071.6,3070.9,0.887704]
[1763460357393,0.002,3071.6,3070.9,0.4822]
[1763460357394,1.455,3071.5,3070.9,0.4822]
[1763460360673,1.455,3071.5,3070.8,0.001]
[1763460362099,1.175,3071.5,3070.8,0.001]
[1763460362296,0.28,3071.4,3070.9,0.4822]
[1763460363296,1.175,3071.3,3070.8,0.001]
[1763460363467,1.175,3071.3,3070.9,0.4822]
[1763460363668,1.175,3071.3,3071.2,0.6507]
[1763460364088,1.175,3071.3,3071.2,1.1329]
[1763460364290,1.175,3071.3,3071.2,1.538404]
[1763460364478,1.455,3071.3,3071.2,1.538404]
[1763460365290,1.455,3071.3,3071.2,2.18583275]
[1763460365701,1.175,3071.3,3071.2,2.18583275]
[1763460366085,0.0012,3071.6,3071.3,1.31249664]
[1763460366292,0.0012,3071.6,3071.5,0.896404]
[1763460366477,0.0012,3071.6,3071.5,1.391104]
[1763460366883,0.2812,3071.6,3071.5,1.391104]
[1763460368232,1.4562,3071.6,3071.5,1.391104]
[1763460370212,1.4562,3071.6,3071.5,1.392104]
[1763460370384,1.4562,3071.6,3071.5,2.29909664]
[1763460370583,1.4562,3071.6,3071.5,1.80439664]
[1763460371003,1.4562,3071.6,3071.5,2.29909664]
[1763460371684,1.4562,3071.6,3071.5,4.03430996]
[1763460373214,1.4562,3071.6,3071.5,3.62880596]
[1763460373388,1.4562,3071.6,3071.5,1.89359264]
[1763460374032,1.4562,3071.6,3071.5,0.001]
[1763460374033,1.7031,3071.6,3071.5,0.001]
[1763460374400,1.95,3071.6,3071.5,0.001]
[1763460377037,3.16213641,3071.6,3071.1,0.001]
[1763460377234,0.0557,3071.2,3071.1,0.001]
[1763460377830,0.3026,3071.2,3071.1,0.001]
[1763460378193,0.5816,3071.2,3071.1,0.001]
[1763460379099,0.5816,3071.2,3070.8,0.001]
[1763460379423,0.3206,3070.9,3070.8,0.001]
[1763460379798,0.5675,3070.9,3070.8,0.001]
[1763460380314,1.21149264,3070.8,3070.1,0.001]
[1763460380637,0.2431,3070.5,3070.1,0.001]
[1763460381120,0.90699264,3070.4,3070.1,0.001]
[1763460381298,0.0594,3070.2,3070.1,0.001]
[1763460381702,0.3063,3070.2,3070.1,0.001]
[1763460382710,0.3063,3070.2,3069.4,0.001]
[1763460382905,0.2413,3069.5,3069.4,0.001]
[1763460383242,0.5203,3069.5,3069.4,0.001]
[1763460383412,0.7672,3069.5,3069.4,0.001]
[1763460384441,0.279,3069.5,3069.4,0.001]
[1763460384944,0.2469,3070.0,3069.4,0.001]
[1763460385132,0.405504,3070.8,3069.4,0.001]
[1763460385133,0.279,3069.9,3069.4,0.001]
[1763460385319,0.279,3069.8,3069.4,0.001]
[1763460386305,0.0756,3070.9,3069.7,0.4655]
[1763460386548,0.5259,3070.8,3069.7,0.4655]
[1763460386846,0.5251,3070.8,3069.7,0.4655]
[1763460387055,0.279,3070.8,3069.7,0.4655]
[1763460388209,1.175,3070.7,3069.7,0.4655]
[1763460388412,1.175,3070.7,3069.7,0.9455]
[1763460388621,1.175,3070.7,3069.8,0.48]
[1763460388919,1.4211,3070.7,3069.8,0.48]
[1763460389710,0.002,3070.2,3069.8,0.48]
[1763460389936,0.279,3070.1,3069.8,0.48]
[1763460390158,0.279,3070.1,3069.9,0.03257435]
[1763460390359,0.279,3070.1,3070.0,0.6476]
[1763460390590,0.279,3070.1,3070.0,1.1276]
[1763460390883,0.279,3070.1,3070.0,0.6476]
[1763460391047,0.279,3070.1,3070.0,0.9455]
[1763460391367,0.279,3070.1,3070.0,0.4655]
[1763460391930,0.279,3070.1,3070.0,0.9455]
[1763460393617,0.002,3070.2,3070.0,0.9455]
[1763460393881,0.002,3070.2,3070.1,1.56567622]
[1763460394035,1.457,3070.2,3070.1,1.56567622]
[1763460394240,1.457,3070.2,3070.1,1.533104]
[1763460394841,1.457,3070.2,3070.1,2.44009664]
[1763460395040,0.002,3070.6,3070.2,0.405504]
[1763460395234,0.002,3070.6,3070.5,0.871004]
[1763460395450,1.177,3070.6,3070.5,0.871004]
[1763460395653,1.177,3070.6,3070.5,1.351004]
[1763460396258,1.456,3070.6,3070.5,1.38357198]
[1763460396454,1.456,3070.6,3070.5,1.58553459]
[1763460396980,0.002,3070.9,3070.5,1.58553459]
[1763460396981,0.002,3070.9,3070.6,0.405504]
[1763460397180,0.2461,3072.7,3070.8,1.80789664]
[1763460397420,0.2461,3072.7,3071.5,0.6823]
[1763460397627,0.2461,3072.7,3071.5,1.087804]
[1763460397794,0.2461,3072.7,3071.5,1.576004]
[1763460397977,0.2802,3071.6,3071.5,1.576004]
[1763460398179,1.4552,3071.6,3071.5,1.576004]
[1763460404835,1.4552,3071.6,3071.5,1.526004]
[1763460406941,1.7066,3071.6,3071.1,0.1869]
[1763460407142,1.7066,3071.6,3070.4,0.63605416]
[1763460407143,1.4552,3071.6,3071.5,0.6823]
[1763460407392,1.4552,3071.6,3071.1,0.405504]
[1763460407669,1.4552,3071.6,3071.1,0.592404]
[1763460407846,1.4552,3071.6,3071.2,0.4882]
[1763460408063,1.4552,3071.6,3071.1,0.592404]
[1763460408064,1.4552,3071.6,3071.1,0.6751]
[1763460408408,1.4552,3071.6,3071.2,0.4882]
[1763460408807,1.4552,3071.6,3071.5,0.4954]
[1763460409215,1.4552,3071.6,3071.5,0.9836]
[1763460409619,1.4552,3071.6,3071.5,1.389104]
[1763460410128,1.4544,3071.6,3071.5,1.389104]
[1763460411544,1.4544,3071.6,3071.5,6.19609664]
[1763460411729,1.4544,3071.6,3071.5,6.8157063]
[1763460412148,1.4544,3071.6,3071.5,5.9220023]
[1763460412464,1.4544,3071.6,3071.5,5.30239264]
[1763460413268,1.4544,3071.6,3071.5,6.19609664]
[1763460414473,0.002,3072.0,3071.5,2.29609664]
[1763460414674,0.002,3072.0,3071.9,9.50589606]
[1763460414857,0.002,3072.3,3072.0,1.31249664]
[1763460415181,0.002,3072.3,3072.2,0.6823]
[1763460415385,1.177,3072.3,3072.2,1.087804]
[1763460415595,1.177,3072.3,3072.2,1.60855396]
[1763460415758,1.456,3072.3,3072.2,1.576004]
[1763460416092,1.456,3072.3,3072.2,2.22804519]
[1763460416292,1.456,3072.3,3072.2,2.45084971]
[1763460416887,0.2961,3073.6,3072.3,0.405504]
[1763460417062,0.2961,3073.6,3072.5,0.405504]
[1763460417256,0.2961,3073.6,3072.7,0.405504]
[1763460417991,0.279,3073.5,3072.7,0.4882]
[1763460418204,1.175,3073.4,3072.7,0.4882]
[1763460418993,1.4711,3073.4,3072.5,0.405504]
[1763460419920,1.175,3073.4,3072.7,0.405504]
[1763460420266,1.175,3073.4,3072.3,0.405504]
[1763460420458,1.175,3073.4,3072.7,0.4882]
[1763460420890,1.175,3073.4,3072.8,0.405504]
[1763460422605,1.175,3073.4,3072.8,0.893704]
[1763460423072,1.175,3073.4,3072.5,0.405504]
[1763460423258,1.175,3073.4,3072.8,0.4882]
[1763460424955,0.4227,3072.9,3072.2,1.73521332]
[1763460425079,0.2518,3072.3,3071.7,1.73521332]
[1763460425279,0.279,3072.2,3071.5,0.001]
[1763460425522,0.279,3072.2,3071.6,0.4882]
[1763460425690,0.279,3072.2,3071.7,0.03255526]
[1763460425892,0.279,3072.2,3072.1,0.4954]
[1763460426309,0.279,3072.2,3072.1,2.27019664]
[1763460426481,0.279,3072.2,3072.1,2.70328866]
[1763460426678,0.279,3072.2,3072.1,2.67073764]
[1763460426925,0.5304,3072.2,3071.6,1.73521332]
[1763460427238,0.279,3072.2,3072.1,0.4791]
[1763460427384,0.279,3072.2,3072.1,1.346904]
[1763460427796,0.279,3072.2,3072.1,0.405504]
[1763460428098,0.279,3072.2,3072.1,0.4791]
[1763460428300,0.279,3072.2,3072.1,1.346904]
[1763460428518,0.279,3072.2,3072.1,0.884604]
[1763460429541,0.279,3072.2,3072.1,1.346904]
[1763460429745,0.279,3072.2,3072.1,0.884604]
[1763460429925,0.279,3072.2,3072.1,0.405504]
[1763460431638,0.279,3072.2,3071.9,0.405504]
[1763460432065,0.279,3072.2,3071.9,0.867804]
[1763460432423,0.279,3072.2,3071.9,0.405504]
[1763460432628,0.2514,3072.0,3071.7,0.405504]
[1763460432860,0.279,3072.2,3071.7,0.37068323]
[1763460433023,0.3461,3071.7,3071.5,0.001]
[1763460433227,0.2956,3071.6,3071.5,0.001]
[1763460433441,0.5474,3071.6,3071.5,0.001]
[1763460433662,0.5466,3071.6,3071.5,0.001]
[1763460436965,0.8256,3071.6,3071.5,0.001]
[1763460437738,0.8256,3071.6,3071.1,0.001]
[1763460437970,0.0025,3071.2,3071.1,0.001]
[1763460438240,0.2978,3071.2,3071.1,0.001]
[1763460439771,1.7518,3071.2,3071.1,0.001]
[1763460440608,1.4565,3071.2,3071.1,0.001]
[1763460440805,1.7518,3071.2,3071.1,0.001]
[1763460441873,1.4565,3071.2,3071.1,0.001]
[1763460442540,1.454,3071.2,3071.1,0.6876]
[1763460442713,1.7493,3071.2,3071.1,0.001]
[1763460442918,2.0006,3071.2,3071.1,0.001]
[1763460443395,1.7493,3071.2,3071.1,0.001]
[1763460443595,1.454,3071.2,3071.1,0.001]
[1763460443845,1.454,3071.2,3071.1,0.488]
[1763460444519,1.454,3071.2,3071.1,0.001]
[1763460444724,1.7054,3071.2,3071.1,0.001]
[1763460444897,2.0002,3071.2,3071.1,0.001]
[1763460445601,1.7054,3071.2,3071.1,0.001]
[1763460446722,1.454,3071.2,3071.1,0.001]
[1763460447628,1.7488,3071.2,3071.1,0.001]
[1763460449019,2.0006,3071.2,3071.1,0.001]
[1763460450155,2.0006,3071.2,3070.9,0.001]
[1763460450156,0.0025,3071.1,3070.9,0.001]
[1763460450315,0.074,3070.9,3069.4,0.001]
[1763460450639,0.2953,3070.6,3069.4,0.001]
[1763460450936,0.8265,3070.6,3069.4,0.001]
[1763460451914,0.2953,3070.5,3069.4,0.001]
[1763460452115,0.2522,3070.3,3069.4,0.001]
[1763460452627,0.5471,3070.3,3069.4,0.001]
[1763460457252,0.5463,3070.3,3069.4,0.001]
[1763460457843,0.405504,3070.2,3069.4,0.001]
[1763460458049,0.2522,3069.6,3069.4,0.001]
[1763460458230,0.5312,3069.6,3069.4,0.001]
[1763460458407,0.8253,3069.6,3069.4,0.001]
[1763460462232,0.5312,3069.6,3069.4,0.001]
[1763460462438,0.8253,3069.6,3069.4,0.001]
[1763460467427,0.002,3070.3,3069.4,0.001]
[1763460467428,0.002,3070.3,3069.5,0.4914]
[1763460467629,0.2522,3069.6,3069.5,0.001]
[1763460467829,0.279,3069.6,3069.5,0.001]
[1763460468344,0.5312,3069.6,3069.5,0.001]
[1763460468550,0.8253,3069.6,3069.5,0.001]
[1763460469176,0.5312,3069.6,3069.5,0.001]
[1763460471368,0.8253,3069.6,3069.5,0.001]
[1763460473177,1.230804,3069.6,3069.5,0.001]
[1763460473384,2.4416951,3069.6,3069.5,0.001]
[1763460473996,3.14198508,3069.6,3069.5,0.001]
[1763460475681,2.4416951,3069.6,3069.5,0.001]
[1763460476014,3.14232831,3069.6,3069.5,0.001]
[1763460478123,5.49432831,3069.6,3069.5,0.001]
[1763460478429,1.00453167,3069.6,3069.5,0.4914]
[1763460478609,1.455,3069.6,3069.5,0.001]
[1763460478786,1.455,3069.6,3069.5,0.4914]
[1763460478979,1.455,3069.6,3069.5,0.9495]
[1763460479185,1.455,3069.6,3069.5,0.4914]
[1763460479482,1.455,3069.6,3069.5,0.001]
[1763460480326,1.455,3069.6,3069.5,0.4914]
[1763460480613,0.30422374,3069.6,3069.5,0.001]
[1763460480787,0.405504,3070.1,3069.5,0.001]
[1763460481193,0.2965,3070.2,3069.5,0.001]
[1763460481194,0.2522,3069.6,3069.5,0.001]
[1763460481426,0.657704,3069.6,3069.5,0.001]
[1763460481581,0.951804,3069.6,3069.5,0.001]
[1763460482039,1.231804,3069.6,3069.5,0.001]
[1763460482509,1.93456303,3069.6,3069.5,0.001]
[1763460482710,0.5322,3069.6,3069.5,0.001]
[1763460483223,0.28,3069.6,3069.5,0.001]
[1763460483420,0.2941,3070.0,3069.5,0.001]
[1763460483421,1.06543542,3069.9,3069.5,0.001]
[1763460483947,0.2965,3070.2,3069.5,0.001]
[1763460484836,0.28,3070.1,3069.5,0.001]
[1763460485738,0.28,3070.1,3069.6,0.4581]
[1763460486048,0.28,3070.1,3069.5,0.001]
[1763460488034,1.176,3070.0,3069.5,0.001]
[1763460488202,3.25899264,3070.0,3069.5,0.001]
[1763460489142,3.55349264,3070.0,3069.5,0.001]
[1763460489524,0.2522,3069.6,3069.5,0.001]
[1763460489706,0.936704,3069.6,3069.5,0.001]
[1763460490054,11.6440759,3069.6,3069.5,0.001]
[1763460490253,11.93645666,3069.6,3069.5,0.001]
[1763460492324,11.05934906,3069.6,3069.5,0.001]
[1763460492824,11.36474255,3069.6,3069.5,0.001]
[1763460493137,2.44977701,3069.5,3068.7,0.001]
[1763460493303,9.95496529,3068.9,3068.7,0.001]
[1763460493504,11.24324255,3068.9,3068.7,0.001]
[1763460493705,11.53604255,3068.9,3068.7,0.001]
[1763460495032,11.94754556,3068.9,3068.7,0.001]
[1763460495337,12.8270116,3068.9,3068.7,0.001]
[1763460495540,1.31249664,3068.8,3068.7,0.001]
[1763460495758,0.405504,3068.4,3066.7,1.10257964]
[1763460495960,11.6577341,3068.4,3066.7,1.10257964]
[1763460496109,11.77704556,3068.4,3066.7,1.10257964]
[1763460496304,11.77704556,3068.4,3066.9,0.4647]
[1763460496559,0.405504,3068.2,3066.9,0.4647]
[1763460496756,0.71089749,3068.1,3066.9,0.4647]
[1763460497055,0.96389749,3068.1,3066.9,0.4647]
[1763460497356,0.96389749,3068.1,3066.7,0.63787964]
[1763460497357,1.96188126,3068.1,3066.7,0.63787964]
[1763460498026,4.0448739,3068.1,3066.8,0.4647]
[1763460498211,5.2208739,3068.1,3066.8,0.4647]
[1763460498938,2.8688739,3068.1,3067.1,0.1868]
[1763460499410,2.8688739,3068.1,3066.8,0.4647]
[1763460500244,2.86749165,3068.1,3066.8,0.4647]
[1763460500738,2.86749165,3068.1,3066.7,0.63787964]
[1763460500914,3.29876901,3068.1,3066.7,1.12667964]
[1763460501111,2.86749165,3068.1,3067.1,0.195]
[1763460501515,2.86749165,3068.1,3067.2,0.4888]
[1763460501516,2.16788765,3068.1,3067.2,0.4888]
[1763460501711,1.75810388,3068.1,3067.1,0.195]
[1763460502032,2.16360788,3068.1,3067.1,0.195]
[1763460502221,2.86385241,3068.1,3067.1,0.195]
[1763460503241,2.86385241,3068.1,3067.1,0.6838]
[1763460504130,2.16360788,3068.1,3067.1,0.6838]
[1763460504334,2.16280788,3068.1,3067.1,0.6838]
[1763460506544,1.86870788,3068.1,3067.3,0.4888]
[1763460506725,1.49000388,3068.1,3067.7,0.4888]
[1763460506925,1.89550788,3068.1,3067.7,0.4888]
[1763460507125,0.405504,3068.1,3067.7,0.4888]
[1763460507353,0.279,3068.1,3067.7,0.4888]
[1763460508031,2.114504,3068.1,3067.2,0.4888]
[1763460508235,3.02149664,3068.1,3067.2,0.4888]
[1763460508416,3.02149664,3068.1,3067.1,0.195]
[1763460508417,2.36299264,3068.1,3067.5,0.4888]
[1763460508816,1.59149664,3068.1,3067.5,0.4888]
[1763460509015,1.59149664,3068.1,3068.0,0.4606]
[1763460509780,2.13779664,3068.1,3068.0,0.001]
[1763460509931,2.44123883,3068.1,3068.0,0.001]
[1763460511764,2.85274184,3068.1,3068.0,0.001]
[1763460512094,2.85274184,3068.1,3067.8,0.63787964]
[1763460512095,1.31249664,3068.0,3067.8,0.63787964]
[1763460512279,1.71137292,3067.9,3067.8,0.63787964]
[1763460512467,1.71137292,3067.9,3066.7,0.63787964]
[1763460512468,1.31249664,3067.8,3066.7,0.63787964]
[1763460512662,1.31249664,3067.3,3066.7,0.63787964]
[1763460512871,0.58244219,3067.2,3066.7,0.63787964]
[1763460514009,0.87614219,3067.2,3066.7,0.63787964]
[1763460514153,0.5727,3067.2,3066.7,0.63787964]
[1763460514353,0.279,3067.2,3066.7,0.63787964]
[1763460514562,0.58262921,3067.2,3066.7,0.63787964]
[1763460514985,0.87632921,3067.2,3066.7,0.63787964]
[1763460515181,0.405504,3067.0,3066.7,0.63787964]
[1763460515380,0.773504,3066.8,3066.7,0.63787964]
[1763460515687,1.35613375,3066.8,3066.7,0.63787964]
[1763460517684,1.64943375,3066.8,3066.7,0.63787964]
[1763460518090,4.91042639,3066.8,3066.7,0.63787964]
[1763460518471,3.73342639,3066.8,3066.7,0.63787964]
[1763460518862,2.55642639,3066.8,3066.7,0.63787964]
[1763460519168,3.25816409,3066.8,3066.7,0.63787964]
[1763460520500,1.31249664,3066.7,3066.6,0.63887964]
[1763460520666,4.87970755,3066.7,3066.4,0.63787964]
[1763460520866,1.56629664,3066.5,3066.4,0.63787964]
[1763460521066,2.26803434,3066.5,3066.4,0.63787964]
[1763460521266,2.86604922,3066.5,3066.4,0.63787964]
[1763460521697,3.70882959,3066.5,3066.4,0.63787964]
[1763460521870,4.88039268,3066.5,3066.4,0.63787964]
[1763460523115,3.70882959,3066.5,3066.2,0.63787964]
[1763460523403,0.3932,3066.8,3066.0,0.001]
[1763460523404,1.56629664,3066.3,3066.0,0.001]
[1763460523602,1.31249664,3066.1,3064.7,0.4508]
[1763460523766,2.11965959,3066.0,3064.7,0.4508]
[1763460523970,3.02665223,3066.0,3064.9,0.4508]
[1763460524507,3.02665223,3066.0,3064.6,0.4508]
[1763460524897,3.02665223,3066.0,3064.8,0.4508]
[1763460525504,1.70815658,3066.0,3065.1,0.1958]
[1763460525703,1.58945675,3066.0,3065.1,0.1958]
[1763460525904,1.86845675,3066.0,3065.3,0.4508]
[1763460526471,1.86845675,3066.0,3065.9,0.4871]
[1763460526472,1.28224187,3066.0,3065.9,0.4871]
[1763460526710,0.90699264,3066.3,3065.9,0.9379]
[1763460526711,0.67080446,3066.3,3065.9,0.9379]
[1763460526915,0.279,3066.2,3065.9,0.001]
[1763460527111,0.405504,3066.1,3065.9,0.001]
[1763460527406,0.279,3066.2,3066.0,0.4861]
[1763460527807,9.20852428,3066.9,3066.3,0.4861]
[1763460528010,0.405504,3066.7,3066.1,0.6466]
[1763460528989,0.405504,3066.5,3066.1,0.6466]
[1763460529401,0.405504,3066.5,3066.1,0.1958]
[1763460530223,0.405504,3066.5,3066.1,0.6466]
[1763460531031,0.405504,3066.5,3066.1,0.1958]
[1763460532126,0.405504,3066.5,3066.1,0.6466]
[1763460532623,0.405504,3066.5,3066.1,0.1958]
[1763460532930,0.405504,3066.5,3066.1,0.6466]
[1763460533509,0.28,3066.4,3066.1,0.1958]
[1763460533714,0.28,3066.4,3066.1,0.6466]
[1763460533922,0.28,3066.4,3066.3,0.4861]
[1763460534392,0.405504,3066.8,3066.3,0.9369]
[1763460534592,0.405504,3066.8,3066.7,0.4861]
[1763460534800,0.685504,3066.8,3066.7,0.4861]
[1763460535450,2.07607449,3067.4,3066.7,0.9369]
[1763460535600,0.28,3067.3,3066.7,0.9369]
[1763460535899,0.405504,3067.2,3066.7,0.9369]
[1763460536320,0.405504,3067.2,3066.8,0.4508]
[1763460536922,0.405504,3066.8,3066.1,0.1958]
[1763460537124,0.405504,3066.6,3066.1,0.6466]
[1763460537922,0.405504,3066.6,3066.2,0.4508]
[1763460538125,0.405504,3066.6,3066.5,0.4861]
[1763460538303,0.90699264,3066.5,3066.2,0.4508]
[1763460538807,0.90699264,3066.5,3066.4,0.4861]
[1763460539014,1.21174415,3066.5,3066.4,0.4861]
[1763460539224,0.30475151,3066.5,3066.4,0.9369]
[1763460539425,0.30475151,3066.5,3066.0,0.001]
[1763460539426,0.405504,3066.4,3066.0,0.001]
[1763460539629,0.91565151,3066.5,3066.0,0.001]
[1763460539630,0.30475151,3066.3,3066.0,0.001]
[1763460539923,0.30475151,3066.2,3066.0,0.001]
[1763460540130,0.58475151,3066.1,3066.0,0.001]
[1763460540429,0.99025551,3066.1,3066.0,0.001]
[1763460540926,0.58475151,3066.1,3066.0,0.9379]
[1763460541096,0.405504,3066.7,3066.0,0.9379]
[1763460541297,0.405504,3066.5,3066.1,0.6466]
[1763460541648,0.30475151,3066.4,3066.2,0.4508]
[1763460541929,0.30475151,3066.3,3066.2,0.4508]
[1763460542336,0.30475151,3066.3,3066.2,0.9369]
[1763460543317,0.30475151,3066.3,3066.2,0.4861]
[1763460543516,0.30475151,3066.3,3066.2,0.9369]
[1763460544143,0.58475151,3066.3,3066.2,0.9369]
[1763460545250,0.58475151,3066.3,3066.0,0.001]
[1763460545450,0.90699264,3066.1,3066.0,0.001]
[1763460545653,2.65187623,3066.1,3066.0,0.001]
[1763460546149,2.32107623,3066.1,3066.0,0.001]
[1763460547349,2.65317623,3066.1,3066.0,0.001]
[1763460547939,2.32107623,3066.1,3066.0,0.001]
[1763460548144,5.01447623,3066.1,3066.0,0.001]
[1763460549149,4.67707623,3066.1,3066.0,0.001]
[1763460549355,2.65847623,3066.1,3066.0,0.001]
[1763460549541,4.28825808,3066.1,3066.0,0.001]
[1763460549724,3.82755808,3066.1,3066.0,0.001]
[1763460549919,4.28825808,3066.1,3066.0,0.001]
[1763460550554,2.65847623,3066.1,3066.0,0.001]
[1763460550930,5.1497564,3066.1,3066.0,0.001]
[1763460551138,5.1489564,3066.1,3066.0,0.001]
[1763460551329,3.97987455,3066.1,3066.0,0.001]
[1763460551530,2.65767623,3066.1,3066.0,0.001]
[1763460551755,2.60027623,3066.1,3066.0,0.001]
[1763460552956,2.19477223,3066.1,3066.0,0.4537]
[1763460553281,1.69408359,3066.1,3066.0,0.001]
[1763460553427,2.03148359,3066.1,3066.0,0.001]
[1763460553633,3.35368191,3066.1,3066.0,0.001]
[1763460555266,5.4297564,3066.1,3066.0,0.001]
[1763460555854,0.405504,3065.7,3065.4,0.001]
[1763460556054,9.48742428,3065.5,3065.4,0.001]
[1763460556254,12.26449483,3065.5,3065.4,0.001]
[1763460556439,12.60439483,3065.5,3065.4,0.001]
[1763460557645,12.60439483,3065.5,3064.3,0.4705]
[1763460557646,1.7427176,3065.4,3064.3,0.4705]
[1763460557867,0.90699264,3064.7,3064.0,0.6663]
[1763460558164,0.90699264,3064.5,3064.0,0.6663]
[1763460558367,0.30475151,3064.4,3064.1,0.4705]
[1763460558863,0.30475151,3064.4,3064.3,0.4527]
[1763460559275,0.90699264,3065.2,3064.3,0.9232]
[1763460559276,0.405504,3065.0,3064.3,0.9232]
[1763460559477,0.58475151,3064.9,3064.4,0.4705]
[1763460559683,0.30475151,3064.8,3064.4,0.4705]
[1763460559891,0.28,3064.9,3064.7,0.4638]
[1763460560067,0.28,3064.9,3064.8,0.4638]
[1763460560269,0.405504,3064.8,3064.4,0.4705]
[1763460560593,0.30508681,3064.7,3064.4,0.4705]
[1763460560749,0.30508681,3064.8,3064.4,0.4705]
[1763460560950,0.28,3064.7,3064.4,0.4705]
[1763460561388,0.28,3064.7,3064.6,0.4638]
[1763460561879,8.62242028,3065.3,3064.6,0.9376]
[1763460561880,0.30508681,3065.0,3064.6,0.9376]
[1763460562072,0.28,3064.9,3064.6,0.4738]
[1763460562269,0.28,3064.8,3064.7,0.4738]
[1763460562463,0.28,3064.8,3064.1,0.4738]
[1763460562659,0.28,3064.8,3064.7,0.4638]
[1763460563065,0.28,3064.8,3064.7,0.9376]